Cogmind - Beta 12 @@@ ROGUE MODE // 2023.10.29 @ 18:09:07 Player: gallo Result: Self-destructed Performance ------------- Evolutions (2) 1000 Regions Visited (4) 800 Robots Destroyed (54) 270 Value Destroyed (1463) 1463 Prototype IDs (4) 80 Alien Tech Used (0) 0 Bonus (8) 8 TOTAL SCORE: 3621 Bonus ------- High Alert Combat Kills 8 Cogmind --------- Core Integrity 101/550 Matter 282/300 Energy 265/265 System Corruption 0% Temperature Cool (0) Movement Walking (190) Ox1 Location -8/Storage Parts ------- > --- POWER (2) -------- Reinforced Ion Engine > --- PROPULSION (3) --- Carbon-fiber Leg > --- UTILITY (3) ------ Cooling System Small Storage Unit > --- WEAPON (3) ------- Particle Gun High-powered Shotgun Shock Maul > --- INVENTORY (8) ---- Armored Treads Small Storage Unit EM Pulse Gun Heavy Particle Gun Particle Cannon High-powered Shotgun Peak State ------------ > --- POWER ------------ Reinforced Ion Engine Light Deuterium Engine > --- PROPULSION ------- Aluminum Leg Aluminum Leg Improved Aluminum Leg > --- UTILITY ---------- Cooling System Small Storage Unit High-powered Tractor Beam > --- WEAPON ----------- High-powered Shotgun High-powered Shotgun Shock Maul > --- INVENTORY -------- Armored Treads Aluminum Leg Small Storage Unit EM Pulse Gun Particle Gun Heavy Particle Gun Particle Cannon Light Assault Rifle [Rating: 27] Favorites ----------- Power Reinforced Ion Engine Engine Reinforced Ion Engine Propulsion Aluminum Leg Leg Aluminum Leg Utility Small Storage Unit Device High-powered Tractor Beam Storage Small Storage Unit Processor Transport Network Coupler Weapon Particle Cannon Energy Gun Heavy Particle Gun Energy Cannon Particle Cannon Ballistic Gun Heavy Assault Rifle Launcher Grenade Launcher Impact Weapon Shock Maul Special Melee Weapon Datajack Build | -11 -10 -9 -8 -8 ------- Run | Jun Mat Mat Mat Sto Slots Evolved 4 | . . 2 2 . Power 1 | . . . 1 . Propulsion 1 | . . 1 . . Utility 1 | . . 1 . . Weapon 1 | . . . 1 . Parts Attached 50 | 8 7 9 12 14 Power 8 | 2 2 2 2 . Engine 8 | 2 2 2 2 . Core . | . . . . . Reactor . | . . . . . Propulsion 15 | 2 1 4 3 5 Treads . | . . . . . Leg 15 | 2 1 4 3 5 Wheel . | . . . . . Hover . | . . . . . Flight . | . . . . . Utility 8 | 1 2 3 1 1 Device 5 | . 1 2 1 1 Storage 2 | 1 . 1 . . Processor 1 | . 1 . . . Hackware . | . . . . . Protection . | . . . . . Artifact . | . . . . . Weapon 19 | 3 2 . 6 8 Energy Gun 4 | 1 . . 1 2 Energy Cannon 2 | . 1 . 1 . Ballistic Gun 10 | 2 . . 3 5 Ballistic Cannon . | . . . . . Launcher 1 | . 1 . . . Special Weapon . | . . . . . Impact Weapon 1 | . . . . 1 Slashing Weapon . | . . . . . Piercing Weapon . | . . . . . Special Melee Weapon 1 | . . . 1 . Unidentified Prototypes 2 | . . . 1 1 Parts Lost 13 | . 1 . 1 11 Power 1 | . . . . 1 Propulsion 6 | . . . . 6 Utility 3 | . 1 . . 2 Weapon 3 | . . . 1 2 Highest Loss Streak 4 | . 1 . 1 4 To Critical Strikes . | . . . . . Average Slot Usage (%) 92 | . 92 95 98 85 Engine 15 | . 14 11 17 15 Leg 25 | . 28 33 27 19 Device 14 | . 5 13 18 15 Storage 10 | . 14 15 9 9 Energy Gun 4 | . 5 . 2 8 Energy Cannon 5 | . 8 11 8 . Ballistic Gun 8 | . 12 . 7 10 Launcher 2 | . 1 11 3 . Impact Weapon 1 | . . . . 3 Special Melee Weapon 2 | . . . 5 2 Naked Turns . | . . . . . Heaviest Build 39 | 14 17 25 39 32 Greatest Support 33 | 20 20 30 33 33 Greatest Overweight (x) 8 | . . . 1 8 Average Overweight (x) . | . . . . . Largest Inventory Capacity 8 | 8 8 8 8 8 Average Capacity 7 | 6 8 8 8 8 Most Carried 8 | 2 8 8 8 8 Average Carried 6 | 1 6 7 7 6 Final Capacity 8 | 8 8 8 8 8 Final Carried 8 | 2 8 8 7 6 Class Distribution -------------------- 46% | Scavenger-Mutant 44% | Mutant 4% | Gunner 4% | Scavenger-Gunner Dominant Class ---------------- Mutant | -10/Materials Scavenger-Mutant | -9/Materials Scavenger-Mutant | -8/Materials Scavenger-Mutant | -8/Storage Resources | -11 -10 -9 -8 -8 ----------- Run | Jun Mat Mat Mat Sto Matter Collected 1217 | 196 197 221 282 321 Remotely 758 | . . 159 282 317 Salvage Created 1825 | . 244 303 595 683 Parts 102 | . 18 27 25 32 Haulers Intercepted . | . . . . . Recyclers Shooed 3 | . . . 1 2 Parts Field Recycled . | . . . . . Retrieved Matter . | . . . . . Parts Self-Destructed . | . . . . . Prevented . | . . . . . Kills | -11 -10 -9 -8 -8 ------- Run | Jun Mat Mat Mat Sto Combat Hostiles Destroyed 39 | . 7 10 12 10 Melee 1 | . . . . 1 Guns 13 | . 5 . 2 6 Cannons 13 | . 2 3 8 . AOE 9 | . . 7 2 . Classes Destroyed 10 | . 4 3 1 2 Worker 6 | . 1 . 1 4 Builder 1 | . . 1 . . Recycler 4 | . . . 2 2 Mechanic 1 | . . . . 1 Watcher 3 | . 1 1 1 . Swarmer 11 | . 3 3 5 . Grunt 15 | . 4 4 3 4 Brawler 2 | . . 2 . . Sentry 9 | . . 1 4 4 Hunter 2 | . . . . 2 Best Kill Streak 6 | . 3 5 4 6 Combat Bots Only 4 | . 2 4 3 2 Max Kills in Single Turn 2 | . 1 2 1 1 Gunslinging . | . . . . . Exploded 2 | . . 2 1 . Melee 1 | . . . . 1 Uniques/NPCs Destroyed . | . . . . . Combat | -11 -10 -9 -8 -8 -------- Run | Jun Mat Mat Mat Sto Damage Taken 2767 | . 429 184 680 1474 Core 549 | . 88 12 160 289 Absorbed by Shields 88 | . . . . 88 Regen/Repaired (Parts) 120 | . . . . 120 Core Remaining (%) 87 | 100 64 97 . . Volleys Fired 153 | . 30 12 37 74 Largest 3 | . 2 2 3 3 Hottest 140 | . 98 98 136 140 Shots Fired 293 | . 60 23 75 135 Gun 214 | . 44 . 35 135 Cannon 62 | . 15 12 35 . Launcher 17 | . 1 11 5 . Special . | . . . . . Kinetic 137 | . 29 . 30 78 Thermal 124 | . 15 12 40 57 Explosive 17 | . 1 11 5 . Electromagnetic 15 | . 15 . . . Robot Hit Streak 7 | . 4 2 7 6 Robot Miss Streak 6 | . 3 2 6 5 Penetration Max . | . . . . . Secondary Targets . | . . . . . Shots Hit Robots 170 | . 28 10 49 83 Core Hits 80 | . 14 13 24 29 Critical Kills . | . . . . . Critical Parts Destroyed 3 | . . . . 3 Critical Strikes 5 | . . . . 5 Burn 1 | . . . . 1 Smash 4 | . . . . 4 Melee Attacks 20 | . . . 10 10 Impact 10 | . . . . 10 Slashing . | . . . . . Piercing . | . . . . . Sneak Attacks 6 | . . . 6 . Combat Hostiles . | . . . . . Follow-up Attacks . | . . . . . Damage Inflicted 3522 | . 437 637 1007 1441 Guns 1685 | . 296 . 275 1114 Cannons 596 | . 103 83 410 . Explosions 910 | . 34 554 322 . Melee 327 | . . . . 327 Ramming 4 | . 4 . . . Kinetic 1027 | . 202 . 204 621 Thermal 1187 | . 103 110 481 493 Explosive 883 | . 34 527 322 . Electromagnetic 94 | . 94 . . . Impact 327 | . . . . 327 Slashing . | . . . . . Piercing . | . . . . . Highest Corruption . | . . . . . Average Corruption . | . . . . . Corruption Purged . | . . . . . Corruption Blocked . | . . . . . Overload Shots . | . . . . . Overflow Damage 188 | . . 15 20 153 Projectiles 8 | . . 8 . . Explosions 27 | . . 7 20 . Melee 153 | . . . . 153 Knockbacks . | . . . . . Impact . | . . . . . Kinetic . | . . . . . Secondary . | . . . . . Self-Inflicted Damage 78 | . . 78 . . Shots 4 | . . 4 . . Rammed . | . . . . . Targets Rammed 2 | . 1 . 1 . Kicked 2 | . 1 . 1 . Crushed . | . . . . . Highest Temperature 422 | . 90 27 102 422 Average Temperature 119 | . 27 15 32 172 Received Heat Transfer 904 | . 96 39 252 517 Effects 3 | . . . . 3 Shutdowns 3 | . . . . 3 Siege Activations . | . . . . . Robots Corrupted . | . . . . . Combat Hostiles . | . . . . . Parts Fried 4 | . . . . 4 Impact Corruptions 7 | . . . . 7 Robots Melted . | . . . . . Combat Hostiles . | . . . . . Parts Melted 4 | . . . 1 3 Heat Transferred 2381 | . 185 198 888 1110 Parts Sabotaged . | . . . . . Parts Stolen . | . . . . . Parts Stripped . | . . . . . Power Chain Reactions . | . . . . . Missiles Intercepted . | . . . . . Alert | -11 -10 -9 -8 -8 ------- Run | Jun Mat Mat Mat Sto Peak Influence 481 | . 254 466 481 343 Initial 196 | . . 34 196 162 Average 235 | . 102 213 334 221 Maximum Alert Level 2 | . 1 2 2 1 Low Security (%) 39 | 100 83 42 7 46 Level 1 53 | . 16 39 79 53 Level 2 7 | . . 17 13 . Level 3 . | . . . . . Level 4 . | . . . . . Level 5 . | . . . . . High Security . | . . . . . Max Security . | . . . . . Squads Dispatched 9 | . 3 1 1 4 Investigation 4 | . 1 . 1 2 Extermination . | . . . . . Reinforcement 5 | . 2 1 . 2 Assault . | . . . . . Garrison . | . . . . . Intercept . | . . . . . Searches Triggered . | . . . . . Construction Impeded 1 | . . . . 1 Haulers Reinforced . | . . . . . Active Scanning Responses . | . . . . . Cargo Convoy Interrupts . | . . . . . Stealth | -11 -10 -9 -8 -8 --------- Run | Jun Mat Mat Mat Sto Distress Signals 2 | . . . . 2 Communications Jammed . | . . . . . Distress Signals . | . . . . . Times Spotted 66 | . 18 11 17 20 Peak Tracking Total 7 | . 7 4 3 4 Tactical Retreats 4 | . 1 . 2 1 Traps | -11 -10 -9 -8 -8 ------- Run | Jun Mat Mat Mat Sto Traps Triggered 2 | . 1 . 1 . Indirectly . | . . . . . Trap Hack Attempts . | . . . . . Triggered . | . . . . . Disarmed . | . . . . . Reprogrammed . | . . . . . Reused . | . . . . . Traps Extracted . | . . . . . Installed . | . . . . . Triggered . | . . . . . Machines | -11 -10 -9 -8 -8 ---------- Run | Jun Mat Mat Mat Sto Machines Disabled 6 | . . 4 2 . Max in Single Turn 2 | . . 2 1 . Machines Repaired . | . . . . . Machines Sabotaged . | . . . . . Overloaded Fab Kills . | . . . . . Hacking | -11 -10 -9 -8 -8 --------- Run | Jun Mat Mat Mat Sto Machines Accessed 8 | . 1 . 4 3 Terminals 3 | . 1 . 1 1 Fabricators . | . . . . . Repair Stations 3 | . . . 1 2 Recycling Units . | . . . . . Scanalyzers 2 | . . . 2 . Garrison Access . | . . . . . Total Hacks 19 | . 4 . 8 7 Successful 15 | . 3 . 7 5 Failed 4 | . 1 . 1 2 Catastrophic . | . . . . . Database Lockouts . | . . . . . Manual 17 | . . . 4 13 Terminals 7 | . 4 . 1 2 Fabricators . | . . . . . Repair Stations 6 | . . . 1 5 Recycling Units . | . . . . . Scanalyzers 6 | . . . 6 . Garrison Access . | . . . . . Terminal Hacks 4 | . 3 . . 1 Prototype ID Bank 1 | . 1 . . . Open Door 1 | . . . . 1 Alert Level 1 | . 1 . . . Registered Prototypes 1 | . 1 . . . Fabricator Hacks . | . . . . . Repair Station Hacks 5 | . . . 1 4 Scan Component 3 | . . . 1 2 Repair 2 | . . . . 2 Recycling Unit Hacks . | . . . . . Scanalyzer 6 | . . . 6 . Insert Component 3 | . . . 3 . Analyze 3 | . . . 3 . Garrison Access Hacks . | . . . . . Unauthorized Hacks . | . . . . . Terminals . | . . . . . Fabricators . | . . . . . Repair Stations . | . . . . . Recycling Units . | . . . . . Scanalyzers . | . . . . . Garrison Access . | . . . . . Data Cores Recovered . | . . . . . Used . | . . . . . Hacking Detections 7 | . 1 . 3 3 Full Trace Events 3 | . . . 1 2 Feedback Events . | . . . . . Feedback Blocked . | . . . . . Robot Schematics Acquired . | . . . . . Robots Built . | . . . . . Authchips . | . . . . . Time . | . . . . . Total Robot Build Rating . | . . . . . Part Schematics Acquired 3 | . . . 3 . Parts Built . | . . . . . Authchips . | . . . . . Time . | . . . . . Total Part Build Rating . | . . . . . Parts Repaired 2 | . . . . 2 Time 64 | . . . . 64 Parts Recycled . | . . . . . Recycled Matter . | . . . . . Retrieved Matter . | . . . . . Retrieved Components . | . . . . . Parts Scanalyzed 3 | . . . 3 . Part Schematics Acquired 3 | . . . 3 . Parts Damaged 1 | . . . 1 . Bothacking | -11 -10 -9 -8 -8 ------------ Run | Jun Mat Mat Mat Sto Used RIF Installer . | . . . . . Robots Hacked 4 | . . . 4 . Non-combat 4 | . . . 4 . Combat . | . . . . . Robot Hacks Applied 4 | . . . 4 . parse_system 2 | . . . 2 . no_distress 1 | . . . 1 . find_recycling 1 | . . . 1 . Relay Couplers Released . | . . . . . Fabnet Peak Effective % . | . . . . . Robots Rewired . | . . . . . Allies Hacked . | . . . . . Hacks Repelled . | . . . . . Allies | -11 -10 -9 -8 -8 -------- Run | Jun Mat Mat Mat Sto Total Allies . | . . . . . Largest Group . | . . . . . Highest-Rated Group . | . . . . . Highest-Rated Ally . | . . . . . Total Orders . | . . . . . Ally Attacks . | . . . . . Total Damage . | . . . . . Kills . | . . . . . Allies Corrupted . | . . . . . Allies Melted . | . . . . . Intel | -11 -10 -9 -8 -8 ------- Run | Jun Mat Mat Mat Sto Robot Analysis Total . | . . . . . Derelict Logs Recovered . | . . . . . Drone Launches . | . . . . . Drone Recoveries . | . . . . . Exploration | -11 -10 -9 -8 -8 ------------- Run | Jun Mat Mat Mat Sto Turns Passed 2930 | 95 473 328 1077 957 Spaces Moved 1548 | 79 295 232 529 413 Core 19 | 16 . . . 3 Treads . | . . . . . Legs 1529 | 63 295 232 529 410 Wheels . | . . . . . Hover . | . . . . . Flight . | . . . . . Fastest Speed 50 | 50 120 120 120 120 Average Speed 145 | 105 120 120 174 149 Slowest Speed 450 | 120 120 120 190 450 Overloaded Moves . | . . . . . Propulsion Burnouts . | . . . . . Robots Hopped . | . . . . . Cave-ins Triggered . | . . . . . Exploration Rate (%) 33 | 5 62 23 37 41 Regions Visited 4 Branch Regions 1 Pre-discovered Areas . | . . . . . Known Exits Taken . | . . . . . Unknown Exits Taken 4 | 1 1 1 1 . Scrap Searched . | . . . . . Spaces Dug . | . . . . . Terrain Destroyed 144 | . 6 107 31 . Melee . | . . . . . Projectile . | . . . . . AOE 144 | . 6 107 31 . Terrain Rammed . | . . . . . Walls Destroyed . | . . . . . Machines Disabled . | . . . . . Actions | -11 -10 -9 -8 -8 --------- Run | Jun Mat Mat Mat Sto Total 1902 | 86 351 264 603 598 Wait 92 | . 9 . 2 81 Move 1544 | 78 294 231 528 413 Hop . | . . . . . Pick Up 22 | . 8 4 6 4 Fast Attach 17 | 6 1 3 1 6 Attach 6 | . . 1 3 2 Detach . | . . . . . Swap 27 | 2 6 5 8 6 Drop 19 | . 2 8 7 2 Fire 153 | . 30 12 37 74 Melee 20 | . . . 10 10 Ram . | . . . . . Kick 2 | . 1 . 1 . Crush . | . . . . . Escape Stasis . | . . . . . Rewire . | . . . . . Trap . | . . . . . Miscellaneous . | . . . . . Route ------- -11/Junkyard -10/Materials -9/Materials -8/Materials -8/Storage History --------- Turn | Location | Event 6 | -11/Junkyard | Discovered new exit (range 16) 96 | -11/Junkyard | Entered Materials 302 | -10/Materials | Build established: Mutant 536 | -10/Materials | Discovered new exit (range 11) 569 | -10/Materials | Entered another Materials area 569 | -9/Materials | Evolved 2 slots: Propulsion x1, Utility x1 857 | -9/Materials | Discovered new exit (range 15) 897 | -9/Materials | Entered another Materials area 897 | -8/Materials | Evolved 2 slots: Power x1, Weapon x1 1918 | -8/Materials | Build established: Scavenger-Mutant 1962 | -8/Materials | Discovered new exit (range 4) 1974 | -8/Materials | Entered Storage 2118 | -8/Storage | Repaired Imp. Aluminum Leg 2203 | -8/Storage | Repaired Cooling System 2249 | -8/Storage | Lost 4 parts (2n1u1w) 2604 | -8/Storage | Core integrity fell below 50% 2772 | -8/Storage | Lost 3 parts (1p2n) 2929 | -8/Storage | Core integrity fell below 20% 2931 | -8/Storage | Self-destructed Last Messages --------------- 02751_ Acquired 1 matter. 02768_ Acquired 7 matter. 02768_ Acquired 3 matter. 02789_ K-01 Serf collects debris. 02794_ Acquired Carbon-fiber Leg. 02794_ K-01 Serf collects debris. 02810_ Hpw. Tractor Beam destroyed. 02830_ Aluminum Leg destroyed. 02835_ Destroyed Lgt. Nuclear Core. 02835_ G-47 Trooper system corrupted by crushing effect. 02838_ Destroyed Imp. Heat Sink. 02838_ G-47 Trooper system corrupted by crushing effect. 02839_ G-47 Trooper system terminally corrupted. 02840_ Acquired 4 matter. 02843_ G-47 Trooper suffers critical hit (Smash). 02843_ Destroyed Imp. Heat Sink. 02843_ G-47 Trooper system corrupted by crushing effect. 02843_ G-47 Trooper destroyed. 02849_ K-01 Serf collects debris. 02911_ Lgt. Assault Rifle destroyed. Map ----- +----------------------------------------------------+ | ?????# !#???????????????????????????? | | ?????#[ #???????????????????????????? | | ?????# * ####????????????????????????? | | ?????#####+##+### #????????????????????????? | | ??????# #?# ##???????????????????????? | | ????###+#### #?#%T#???????????????????????? | | ????# # ###+####?????????????????????? | | ????# !!!# == #?????????????????????? | | ????#"" !![+* % #?????????????????????? | | ????#"T %# T #?????????????????????? | | ????#"" ## ##?????????????????????? | | ????# ## #??????????????????????# | | ????## ###### #????#?????????????????# | | ?????###???# [[ #??? #?????????????????# | | ???????????## #?? #?????????????????# | | ????????????# #?? #?????????????????# | | ????????????# a #? #???#####?????????# | | ????????????# # " ????#!!!#?????????# | | ??????#######+## # ??????#!!!#?????????# | | ??????# # + " ????#" "##????????# | | ??????# # # ?? #???# T#????????# | | ??????# """" # ###########+############ | | ??????#^"""" # | | ??????# """" ; | | ??????# """" # gk % | | ??????# # @ #####/#########+### | | ??????# # # #?? ???? | | ??????# + + """"" #?""????? | | ??????############+##+#### "????? #???????? | | ???????????????# #??# "??????#???????? | | ???????????????# #??# ""??????????????? | | ???????????????# #??# "???????????????? | | ???????????????# #??# "???????????????? | | ???????????????# #??# ???????????????? | | ???????????????# #??###???????????????? | | ???????????????########????????????????????? | | ???????????????????????????????????????????? | | ???????????????????????????????????????????? | | ???????????????????????????????????????????? | | ???????????????????????????????????????????? | | ???????????????????????????????????????????? | | ???????????????????????????????????????????? | | ???????????????????????????????????????????? | | ???????????????????????????????????????????? | | ???????????????????????????????????????????? | | ???????????????????????????????????????????? | | ???????????????????????????????????????????? | | ???????????????????????????????????????????? | | ???????????????????????????????????????????? | | ???????????????????????????????????????????? | +----------------------------------------------------+ Best States ------------- Heat Dissipation 53 Energy Generation 23 Energy Capacity 455 Matter Stores 300 Matter Capacity 350 Sight Range 16 Terrain Scan Density 10 Evasion (%) 55 Item Schematics ----------------- Aluminum Leg | -8/Materials | Scanalyzed Datajack | -8/Materials | Scanalyzed Ion Engine | -8/Materials | Scanalyzed Robot Schematics ------------------ None Fabricated ------------ Nothing Alien Tech Used ----------------- None Achievements -------------- Part-time Mechanic Use The Force Challenges ------------ None Game ------ Seed InsulatedReactiveExtractor Manual? 0 Play Time 00:28:11 Cumulative 4.6 hours Start 2023.10.29 @ 16:04:00 End 2023.10.29 @ 18:09:07 Sessions 5 Manual Loads 0 Difficulty Rogue Special Mode None Game No. 15 Rogue 15 Adventurer 0 Explorer 0 Win Type - Total 0 Types 0/0/0/0/0/0/0/0/0 Lore% 6 Gallery% 12 Achievement% 8 Wizard Run 0 Options --------- ASCII 0 Keyboard 0 Movement Arrows Keybinds 0 Fullscreen 1 Font 18/Terminus Map View 76x50 Tactical HUD 1 Map Filters NONE Filters NONE Steam 1 RUN: e620975b-0414-4fff-a7a6-7f3e35b456ab